bitfinex/quotes_SOLUSD_20260201
["timestamp","ask_amount","ask_price","bid_price","bid_amount"]
[1769929898974,9.37481767,104.77,104.75,0.1]
[1769929899169,9.37481767,104.76,104.75,0.1]
[1769929900177,9.37481767,104.77,104.75,0.1]
[1769929900386,9.37481767,104.78,104.75,4.10717835]
[1769929901379,18.91863992,104.78,104.75,0.1]
[1769929902294,9.37481767,104.77,104.75,0.1]
[1769929902896,9.37481767,104.77,104.75,4.55766436]
[1769929903100,9.37481767,104.78,104.75,4.55766436]
[1769929903293,9.37481767,104.77,104.75,0.1]
[1769929905681,18.91886913,104.78,104.75,0.1]
[1769929906296,9.37481767,104.77,104.75,0.1]
[1769929907196,9.37481767,104.77,104.74,14.00504773]
[1769929910414,9.37481767,104.75,104.72,4.45766436]
[1769929910591,11.51180614,104.76,104.72,4.45766436]
[1769929910911,9.37481767,104.75,104.72,4.45766436]
[1769929911096,9.37481767,104.74,104.71,14.00747752]
[1769929911685,9.37481767,104.76,104.72,14.00648865]
[1769929912101,9.37481767,104.76,104.73,4.45766436]
[1769929913106,18.92117432,104.76,104.73,4.45766436]
[1769929913527,9.37481767,104.75,104.72,4.45766436]
[1769929914917,18.92117432,104.76,104.73,4.45766436]
[1769929915103,9.37481767,104.75,104.73,4.45766436]
[1769929915609,18.92117432,104.76,104.73,4.45766436]
[1769929915825,9.37481767,104.77,104.74,4.45766436]
[1769929915988,9.37481767,104.76,104.74,4.45766436]
[1769929916193,9.37481767,104.76,104.72,9.54881214]
[1769929916495,9.37481767,104.76,104.73,9.54824031]
[1769929917096,9.37481767,104.76,104.72,9.54880056]
[1769929917897,18.92054209,104.76,104.72,9.54880056]
[1769929918396,18.92054209,104.76,104.72,14.00646492]
[1769929918914,18.92054209,104.76,104.72,9.54880056]
[1769929919099,18.92054209,104.76,104.73,4.45766436]
[1769929919302,9.37481767,104.76,104.73,4.45766436]
[1769929920213,18.92054009,104.76,104.73,4.45766436]
[1769929921010,18.92054009,104.76,104.7,4.55766436]
[1769929921011,9.37481767,104.74,104.7,4.55766436]
[1769929921203,9.37481767,104.73,104.7,4.55766436]
[1769929921415,9.37481767,104.75,104.71,14.00737422]
[1769929921598,8.72445057,104.76,104.72,4.45766436]
[1769929921792,23.36931196,104.77,104.73,14.00585852]
[1769929921997,23.36840744,104.78,104.74,4.45766436]
[1769929923396,23.36735346,104.79,104.75,4.45766436]
[1769929923900,23.36735346,104.79,104.75,14.00396199]
[1769929925297,13.99253579,104.79,104.75,14.00396199]
[1769929925497,23.36735346,104.79,104.76,4.45766436]
[1769929926803,23.36634832,104.8,104.76,4.45766436]
[1769929927211,13.82399739,104.81,104.77,13.83248203]
[1769929927422,23.41087302,104.82,104.78,4.20380271]
[1769929927822,9.37481767,104.82,104.79,4.20380271]
[1769929928028,49.93002073,104.83,104.79,4.20380271]
[1769929928320,9.37481767,104.81,104.78,4.20380271]
[1769929929713,9.37481767,104.79,104.76,4.20380271]
[1769929932103,9.37481767,104.79,104.76,13.74925407]
[1769929933011,4.49553446,104.78,104.76,9.54545136]
[1769929933224,4.49553446,104.76,104.72,4.20380271]
[1769929933411,13.87035213,104.76,104.72,4.20380271]
[1769929933924,13.87035213,104.76,104.72,13.75244198]
[1769929934831,9.37481767,104.75,104.72,4.20380271]
[1769929935009,13.87035213,104.74,104.7,4.30380271]
[1769929935212,13.87035213,104.73,104.7,4.30380271]
[1769929936627,4.49553446,104.73,104.7,4.30380271]
[1769929936833,13.87035213,104.73,104.7,13.85485671]
[1769929939129,4.49553446,104.75,104.71,4.20380271]
[1769929939426,23.86330883,104.77,104.7,19.02587167]
[1769929939427,4.49553446,104.76,104.73,13.57862038]
[1769929939634,18.14562298,104.78,104.74,4.20380271]
[1769929939843,4.49553446,104.78,104.74,13.57862038]
[1769929941114,4.49553446,104.78,104.74,23.12551377]
[1769929942324,13.87035213,104.78,104.74,13.7506961]
[1769929942833,13.87035213,104.78,104.74,23.12551377]
[1769929946137,4.49553446,104.78,104.74,46.99414084]
[1769929946633,13.87035213,104.78,104.74,23.12551377]
[1769929947614,13.88626387,104.78,104.74,23.14142551]
[1769929948633,2.09949707,104.77,104.74,13.7506961]
[1769929948936,11.49022648,104.77,104.74,4.20380271]
[1769929949343,11.49022648,104.77,104.73,4.20380271]
[1769929949545,4.49553446,104.74,104.71,13.75350636]
[1769929949845,9.39072941,104.75,104.72,4.20380271]
[1769929950249,9.39072941,104.74,104.71,4.20380271]
[1769929950446,13.88626387,104.74,104.71,4.20380271]
[1769929950650,23.43454062,104.74,104.71,4.20380271]
[1769929950945,9.39072941,104.73,104.7,4.30380271]
[1769929951150,14.04381121,104.74,104.66,26.62]
[1769929951151,9.39072941,104.72,104.66,0.1]
[1769929951455,13.88626387,104.69,104.66,9.6542391]
[1769929951640,4.49553446,104.69,104.66,9.6542391]
[1769929951833,13.88626387,104.69,104.66,9.6542391]
[1769929952035,4.49553446,104.69,104.66,9.6542391]
[1769929952749,13.88626387,104.7,104.66,23.24877122]
[1769929953137,13.88626387,104.7,104.66,13.85804181]
[1769929954549,13.88626387,104.72,104.68,4.20380271]
[1769929954736,23.43557323,104.72,104.68,4.20380271]
[1769929954937,9.39072941,104.71,104.68,4.20380271]
[1769929955338,13.88626387,104.71,104.68,4.20380271]
[1769929957555,23.43649447,104.71,104.67,23.30972031]
[1769929957846,13.88626387,104.71,104.68,9.55286922]
[1769929958050,23.43652431,104.71,104.67,4.36525753]
[1769929959252,9.39072941,104.7,104.67,4.36525753]
[1769929960044,23.43652431,104.71,104.67,4.36525753]
[1769929961144,23.43652431,104.71,104.67,23.3097391]
[1769929962362,23.43652431,104.71,104.67,13.91900969]
[1769929963034,9.39072941,104.7,104.66,13.80253926]
[1769929963237,33.42572601,104.71,104.66,4.41180985]
[1769929963238,9.39072941,104.69,104.66,4.41180985]
[1769929963438,9.39072941,104.7,104.66,4.41180985]
[1769929963654,13.48988274,104.7,104.66,13.80253926]
[1769929964160,13.48988274,104.7,104.67,4.31180985]
[1769929964656,23.04014318,104.71,104.67,13.86557239]
[1769929964842,13.64941377,104.71,104.67,23.2563018]
[1769929965159,23.04014318,104.71,104.67,13.86557239]
[1769929965339,23.04014318,104.71,104.67,23.2563018]
[1769929965944,13.64941377,104.71,104.67,23.2563018]
[1769929966152,4.09915333,104.71,104.68,23.255348]
[1769929966453,23.03962301,104.72,104.68,23.255348]
[1769929967058,4.09915333,104.72,104.69,13.70253926]
[1769929967247,27.31306062,104.74,104.7,13.70253926]
[1769929967444,23.03778977,104.74,104.7,13.70253926]
[1769929967843,23.03778977,104.74,104.7,6.56385102]
[1769929967844,13.48988274,104.74,104.7,6.56385102]
[1769929968244,23.03749295,104.74,104.7,6.56385102]
[1769929968938,23.03749295,104.74,104.7,16.11483963]
[1769929969142,23.03749295,104.74,104.7,9.55098861]
[1769929969456,4.09915333,104.73,104.69,18.94238377]
[1769929969658,4.09915333,104.72,104.69,9.55165436]
[1769929969858,13.48988274,104.72,104.68,23.25501872]
[1769929970062,13.48988274,104.72,104.69,4.31180985]
[1769929970460,9.39072941,104.72,104.68,23.25501872]
[1769929970666,4.09915333,104.71,104.68,4.31180985]
[1769929970865,13.48988274,104.71,104.68,4.31180985]
[1769929971368,13.48988274,104.71,104.67,23.25600006]
[1769929971545,4.09915333,104.7,104.67,13.86527065]
[1769929971745,4.09915333,104.7,104.67,23.25600006]
[1769929972264,4.09915333,104.7,104.67,13.86527065]
[1769929972467,13.48988274,104.69,104.66,13.96623796]
[1769929972964,4.09915333,104.69,104.66,13.96623796]
[1769929973164,4.09915333,104.66,104.62,28.20602151]
[1769929973355,4.09915333,104.66,104.63,23.25953526]
[1769929973851,4.09915333,104.67,104.63,13.86880585]
[1769929974168,13.48988274,104.67,104.63,13.86880585]
[1769929974360,4.09915333,104.65,104.62,4.31180985]
[1769929974561,4.09915333,104.64,104.6,37.7015816]
[1769929974864,4.09915333,104.6,104.57,0.1]
[1769929975175,4.05816179,104.54,104.51,0.1]
[1769929975361,4.99014973,104.55,104.51,4.41180985]
[1769929975754,4.99014973,104.55,104.52,9.39072941]
[1769929975958,4.99014973,104.55,104.52,13.70253926]
[1769929976158,4.99014973,104.55,104.52,4.31180985]
[1769929976367,9.56297217,104.57,104.51,0.1]
[1769929976576,9.39072941,104.56,104.51,13.80253926]
[1769929976869,4.09915333,104.55,104.51,13.80253926]
[1769929977049,13.48988274,104.55,104.51,0.1]
[1769929977667,4.09915333,104.53,104.51,0.1]
[1769929977852,4.09915333,104.57,104.52,4.31180985]
[1769929978053,5.96297606,104.59,104.56,4.31180985]
[1769929978266,5.96297606,104.59,104.56,13.70253926]
[1769929978473,5.96297606,104.59,104.56,4.31180985]
[1769929979251,5.96297606,104.59,104.56,13.87555785]
[1769929979967,5.96297606,104.59,104.56,23.26628726]
[1769929980171,5.96297606,104.59,104.56,9.563748]
[1769929980467,5.96297606,104.59,104.56,18.95436297]
[1769929980770,5.96297606,104.59,104.58,13.70253926]
[1769929981066,5.96297606,104.59,104.58,4.31180985]
[1769929981270,13.48988274,104.62,104.58,13.70253926]
[1769929981271,4.09915333,104.62,104.58,13.70253926]
[1769929981455,1.47776699,104.61,104.6,13.70253926]
[1769929981966,4.09915333,104.66,104.62,13.70253926]
[1769929983073,4.09915333,104.65,104.6,4.31180985]
[1769929983251,4.09915333,104.6,104.54,4.31180985]
[1769929983456,4.09915333,104.6,104.56,9.39072941]
[1769929983658,4.09915333,104.61,104.58,9.39072941]
[1769929984164,13.48988274,104.6,104.56,9.56334039]
[1769929984362,4.09915333,104.6,104.56,13.87515024]
[1769929984574,13.48988274,104.6,104.56,13.87515024]
[1769929984971,4.09915333,104.6,104.56,23.26587965]
[1769929985363,13.48988274,104.6,104.56,13.87515024]
[1769929985674,4.09915333,104.6,104.56,23.26587965]
[1769929985876,4.09915333,104.6,104.56,13.87515024]
[1769929986173,4.09915333,104.6,104.56,23.26587965]
[1769929986475,4.09915333,104.59,104.56,9.56334039]
[1769929986978,4.09915333,104.59,104.56,18.9540698]
[1769929987558,4.09915333,104.59,104.56,9.56334039]
[1769929987950,4.09915333,104.59,104.56,18.9540698]
[1769929988260,3.98724434,104.61,104.57,4.25922154]
[1769929988461,9.5569126,104.64,104.59,13.82036505]
[1769929988775,9.39072941,104.64,104.6,4.25922154]
[1769929988962,9.39072941,104.63,104.6,4.25922154]
[1769929989161,9.39072941,104.64,104.6,4.25922154]
[1769929989363,18.94667214,104.65,104.6,13.64995095]
[1769929990367,18.94667214,104.65,104.61,9.55931555]
[1769929990571,22.93391648,104.65,104.61,9.55931555]
[1769929991775,13.37797375,104.64,104.6,13.81914036]
[1769929992079,13.37797375,104.64,104.6,23.20986977]
[1769929992476,3.98724434,104.64,104.6,23.20986977]
[1769929993177,13.37797375,104.64,104.6,23.20986977]
[1769929993476,3.98724434,104.64,104.61,4.25922154]
[1769929993779,22.93389771,104.65,104.61,4.25922154]
[1769929995272,22.93389771,104.65,104.61,13.81841855]
[1769929996797,3.98724434,104.67,104.63,4.25922154]
[1769929996976,3.98724434,104.66,104.63,4.25922154]
[1769929997284,3.98724434,104.66,104.63,13.64995095]
[1769929997480,9.39072941,104.69,104.65,4.25922154]
[1769929997681,3.98724434,104.69,104.66,4.25922154]
[1769929997866,3.98724434,104.7,104.66,4.25922154]
[1769929998071,62.68347733,104.76,104.68,4.25922154]
[1769929998072,18.94006719,104.72,104.68,4.25922154]
[1769929998272,9.39072941,104.73,104.69,4.25922154]
[1769929998478,9.39072941,104.71,104.64,4.25922154]
[1769929998669,9.39072941,104.71,104.67,4.25922154]
[1769929998869,9.39072941,104.71,104.67,13.81246946]
[1769929999065,13.37797375,104.72,104.68,4.25922154]
[1769929999284,3.98724434,104.72,104.68,13.64995095]
[1769929999788,3.98724434,104.74,104.7,13.64995095]
[1769930000793,3.98724434,104.74,104.7,23.20025398]
[1769930000998,0.2,104.76,104.74,4.25922154]
[1769930001167,0.2,104.76,104.74,13.64995095]
[1769930001368,1e-08,104.76,104.75,13.64995095]
[1769930002685,3.98724434,104.8,104.76,4.25922154]
[1769930002886,3.98724434,104.8,104.76,13.64995095]
[1769930003079,3.98724434,104.8,104.76,23.19526571]
[1769930003283,13.57797375,104.82,104.78,9.39072941]
[1769930003587,3.98724434,104.81,104.77,13.64995095]
[1769930004190,13.57797375,104.82,104.78,4.25922154]
[1769930004390,13.57797375,104.82,104.78,13.64995095]
[1769930004889,0.2,104.82,104.79,13.64995095]
[1769930005087,0.2,104.82,104.8,9.54198473]
[1769930005303,0.2,104.82,104.8,23.19193568]
[1769930005876,0.2,104.82,104.81,9.39072941]
[1769930006389,13.37797375,104.86,104.81,13.64995095]
[1769930006692,9.73620519,104.87,104.83,4.25922154]
[1769930006693,9.59072941,104.87,104.83,4.25922154]
[1769930006894,13.57797375,104.87,104.83,13.64995095]
[1769930007094,13.37797375,104.86,104.82,4.25922154]
[1769930007410,9.39072941,104.85,104.82,4.25922154]
[1769930007582,9.39072941,104.85,104.78,23.85816326]
[1769930007583,13.37797375,104.84,104.8,4.25922154]
[1769930007908,13.37797375,104.84,104.79,4.25922154]
[1769930008080,3.98724434,104.84,104.8,13.64995095]
[1769930008597,13.37797375,104.84,104.8,13.64995095]
[1769930008801,9.39072941,104.84,104.8,13.64995095]
[1769930008980,9.39072941,104.84,104.8,23.19161197]
[1769930009593,9.38289783,104.82,104.78,13.64211937]
[1769930009899,9.38289783,104.82,104.78,4.25922154]
[1769930010387,13.37014217,104.83,104.78,13.64211937]
[1769930010998,22.9097453,104.83,104.78,23.18562133]
[1769930011194,22.9097453,104.83,104.79,13.64211937]
[1769930011195,9.38289783,104.83,104.79,13.64211937]
[1769930011399,13.37014217,104.83,104.79,13.64211937]
[1769930011699,9.53856426,104.84,104.78,9.54350196]
[1769930011700,13.37014217,104.82,104.78,4.25922154]
[1769930012203,9.38289783,104.81,104.78,4.25922154]
[1769930012575,13.37014217,104.8,104.76,18.92824486]
[1769930012882,13.37014217,104.8,104.76,9.54534703]
[1769930013599,22.91216566,104.8,104.76,9.54534703]
[1769930013778,22.91216566,104.8,104.75,23.18851505]
[1769930013974,9.38289783,104.79,104.75,23.18851505]
[1769930014199,13.37014217,104.8,104.76,4.25922154]
[1769930014406,3.98724434,104.8,104.76,13.64211937]
[1769930015291,3.98724434,104.8,104.76,23.18753339]
[1769930015292,13.37014217,104.8,104.76,23.18753339]
[1769930015494,18.92427537,104.81,104.77,4.25922154]
[1769930016007,17.64541302,104.83,104.79,4.25922154]
[1769930016996,3.98724434,104.81,104.76,13.80450343]
[1769930017203,13.37014217,104.81,104.76,23.18740126]
[1769930017681,9.38289783,104.81,104.77,13.23649307]
[1769930017884,13.05700966,104.81,104.77,13.23649307]
[1769930018300,13.05700966,104.81,104.77,3.85359524]
[1769930019204,22.59837489,104.81,104.77,3.85359524]
[1769930020006,22.59837489,104.81,104.77,13.23649307]
[1769930020797,13.05700966,104.81,104.77,22.78109295]
[1769930021100,22.59823675,104.81,104.77,3.85359524]
[1769930021303,9.38289783,104.8,104.77,3.85359524]
[1769930021510,22.59823675,104.81,104.77,3.85359524]
[1769930024002,9.38289783,104.8,104.77,3.85359524]
[1769930026305,12.99486551,104.78,104.75,12.99607869]
[1769930027107,9.38289783,104.78,104.75,12.99607869]
[1769930028498,12.99486551,104.79,104.76,3.44995176]
[1769930028815,22.53778948,104.79,104.75,12.99607869]
[1769930030515,3.61196768,104.76,104.73,12.99831421]
[1769930030816,3.61196768,104.76,104.73,3.44995176]
[1769930031000,12.99486551,104.77,104.73,3.44995176]
[1769930031204,3.61196768,104.77,104.73,12.83284959]
[1769930031716,12.99486551,104.77,104.73,3.44995176]
[1769930032011,22.53999566,104.77,104.73,3.44995176]
[1769930032199,12.99486551,104.74,104.7,3.44995176]
[1769930032401,12.99486551,104.74,104.71,3.44995176]
[1769930033408,12.99486551,104.74,104.7,13.00059118]
[1769930034004,12.99486551,104.73,104.7,3.44995176]
[1769930034213,12.99486551,104.73,104.69,13.00154422]
[1769930035118,12.99486551,104.75,104.71,3.44995176]
[1769930035329,12.99486551,104.75,104.71,12.83284959]
[1769930035330,3.61196768,104.75,104.71,12.83284959]
[1769930035624,12.99486551,104.75,104.71,12.83284959]
[1769930036026,22.5420388,104.75,104.71,3.44995176]
[1769930036722,22.5420388,104.75,104.69,22.38450514]
[1769930036723,3.61196768,104.73,104.69,22.38450514]
[1769930036906,12.99486551,104.73,104.69,13.00160731]
[1769930037307,12.99486551,104.73,104.7,13.00082537]
[1769930039236,12.99486551,104.74,104.71,3.44995176]
[1769930039524,22.54247046,104.74,104.71,3.44995176]
[1769930039737,22.54247046,104.74,104.7,22.3837232]
[1769930039908,23.86458335,104.76,104.71,3.44995176]
[1769930040106,12.99486551,104.8,104.76,3.44995176]
[1769930040414,3.61196768,104.8,104.76,12.83284959]
[1769930040612,3.61196768,104.8,104.76,22.37822167]
[1769930040814,22.53565719,104.82,104.78,3.44995176]
[1769930041022,3.61196768,104.82,104.78,12.83284959]
[1769930041228,3.61196768,104.81,104.77,12.83284959]
[1769930041411,3.61196768,104.79,104.75,22.37897301]
[1769930041612,12.99486551,104.79,104.75,22.37897301]
[1769930041813,3.61196768,104.8,104.76,22.37833994]
[1769930042017,13.15226722,104.82,104.78,9.38289783]
[1769930042323,22.53516505,104.82,104.78,9.38289783]
[1769930042520,12.99486551,104.81,104.77,3.44995176]
[1769930042714,12.99486551,104.81,104.77,12.83284959]
[1769930043432,3.61196768,104.81,104.77,12.83284959]
[1769930043809,12.99486551,104.81,104.77,12.83284959]
[1769930044232,12.99486551,104.81,104.77,22.37718423]
[1769930045115,12.99486551,104.81,104.77,12.9942864]
[1769930045630,12.99486551,104.8,104.77,12.9942864]
[1769930045832,12.99486551,104.8,104.76,22.37813118]
[1769930046025,12.99486551,104.8,104.76,12.99523335]
[1769930046334,12.99486551,104.78,104.75,9.545952]
[1769930046715,3.61196768,104.78,104.75,9.545952]
[1769930049337,3.15447718,104.76,104.72,27.21324885]
[1769930049534,12.53737501,104.76,104.72,22.27277013]
[1769930049834,3.15447718,104.76,104.73,18.9311219]
[1769930050136,3.15447718,104.78,104.74,22.27102827]
[1769930050833,3.15447718,104.78,104.75,12.72366171]
[1769930051336,3.15447718,104.76,104.71,23.87403492]
[1769930051525,12.53737501,104.76,104.72,12.72366171]
[1769930051925,12.53737501,104.76,104.72,22.27269099]
[1769930052827,12.53737501,104.76,104.73,3.34076388]
[1769930053141,3.15447718,104.74,104.7,12.72366171]
[1769930053622,12.53737501,104.74,104.7,12.72366171]
[1769930054235,3.15447718,104.74,104.71,12.89061485]
[1769930054438,12.53737501,104.73,104.69,12.72366171]
[1769930054628,12.53737501,104.73,104.69,3.34076388]
[1769930055022,9.38289783,104.73,104.68,45.45527625]
[1769930055231,12.53737501,104.72,104.68,36.07237842]
[1769930055735,12.53737501,104.72,104.68,39.4131423]
[1769930056733,12.53737501,104.7,104.66,12.72366171]
[1769930056941,12.53737501,104.69,104.65,12.89607922]
[1769930057125,12.53737501,104.68,104.64,22.3797906]
[1769930057319,3.15447718,104.69,104.65,12.72366171]
[1769930057521,12.53737501,104.69,104.65,12.72366171]
[1769930057726,12.53737501,104.69,104.65,3.34076388]
[1769930058030,12.53737501,104.69,104.65,22.27894094]
[1769930058232,22.08949608,104.69,104.65,12.89604311]
[1769930058646,9.38289783,104.66,104.64,0.1]
[1769930058942,3.15447718,104.64,104.6,3.44076388]
[1769930059143,3.15447718,104.64,104.6,13.0009582]
[1769930059144,12.53737501,104.64,104.6,13.0009582]
[1769930059332,3.15447718,104.64,104.6,22.38385603]
[1769930059532,12.53737501,104.63,104.6,0.1]
[1769930060428,22.09494528,104.63,104.6,0.1]
[1769930060828,9.38289783,104.62,104.6,0.1]
[1769930061331,12.53737501,104.63,104.6,0.1]
[1769930061639,22.09490009,104.63,104.6,0.1]
[1769930063653,12.53737501,104.62,104.6,0.1]
[1769930064243,3.15447718,104.6,104.55,22.28789775]
[1769930064439,12.53737501,104.59,104.55,3.34076388]
[1769930064639,22.09867953,104.59,104.55,3.34076388]
[1769930065150,9.38289783,104.58,104.55,3.34076388]
[1769930065926,3.15447718,104.61,104.56,3.34076388]
[1769930066148,12.53737501,104.6,104.55,22.28835069]
[1769930066545,12.53737501,104.6,104.56,3.34076388]
[1769930067054,22.09809411,104.6,104.56,3.34076388]
[1769930068252,9.38289783,104.59,104.56,3.34076388]
[1769930069253,9.38289783,104.59,104.56,2.84165071]
[1769930069764,22.09864737,104.59,104.56,2.84165071]
[1769930070135,12.71574954,104.59,104.56,2.84165071]
[1769930070340,18.94417019,104.59,104.56,2.84165071]
[1769930070961,22.09864737,104.59,104.56,2.84165071]
[1769930071660,3.15447718,104.6,104.56,21.83029402]
[1769930071962,12.57950608,104.6,104.57,3.34076388]
[1769930072255,12.57950608,104.6,104.56,17.8373887]
[1769930072754,22.13991837,104.6,104.56,17.8373887]
[1769930073141,22.13991837,104.6,104.56,8.4123598]
[1769930073460,9.4250289,104.61,104.57,9.4250289]
[1769930073750,22.13824267,104.62,104.57,18.9873038]
[1769930074146,22.13824267,104.62,104.58,9.4250289]
[1769930074355,3.15447718,104.61,104.57,22.32806768]
[1769930074657,23.8947989,104.63,104.59,3.34076388]
[1769930074658,18.98277288,104.63,104.59,3.34076388]
[1769930074843,22.13725006,104.63,104.59,12.76579278]
[1769930075047,22.13725006,104.63,104.59,3.34076388]
[1769930075367,9.4250289,104.6,104.57,3.34076388]
[1769930075552,12.57950608,104.61,104.57,12.9037114]
[1769930075932,12.57950608,104.61,104.57,22.3287403]
[1769930076157,12.57950608,104.59,104.54,3.44076388]
[1769930076349,12.57950608,104.59,104.55,3.34076388]
[1769930077150,12.57950608,104.59,104.55,12.90508147]
[1769930077559,12.57950608,104.59,104.55,3.34076388]
[1769930077866,12.57950608,104.59,104.55,12.90526164]
[1769930078344,3.15447718,104.59,104.55,12.90526164]
[1769930078546,12.57950608,104.59,104.55,12.90526164]
[1769930079266,3.15447718,104.59,104.55,22.33029054]
[1769930079562,3.11012222,104.58,104.55,9.56449776]
[1769930079958,12.67149039,104.59,104.55,12.5887221]
[1769930080158,3.11012222,104.59,104.55,12.5887221]
[1769930080344,12.67135448,104.59,104.55,12.5887221]
[1769930082161,22.09638338,104.59,104.55,3.02422434]
[1769930082853,3.11012222,104.58,104.54,22.1146145]
[1769930083059,3.11012222,104.58,104.54,12.6895856]
[1769930083354,12.59249198,104.55,104.54,1e-08]
[1769930084056,3.16746308,104.54,104.51,0.1]
[1769930084269,9.4250289,104.58,104.49,0.3227156]
[1769930084270,3.16746308,104.52,104.49,0.3227156]
[1769930084469,3.16746308,104.51,104.49,0.3227156]
[1769930084650,3.16746308,104.5,104.49,0.3227156]
[1769930084850,3.16746308,104.5,104.46,12.47475276]
[1769930085668,3.16746308,104.5,104.47,9.57204639]
[1769930085970,3.16746308,104.5,104.46,12.47499686]
[1769930086176,12.73684696,104.5,104.46,12.47499686]
[1769930086469,3.16746308,104.49,104.45,87.62690883]
[1769930086661,3.16746308,104.49,104.45,97.2003376]
[1769930087050,3.16746308,104.49,104.46,9.5729996]
[1769930087272,9.4250289,104.51,104.46,21.90029349]
[1769930087469,9.4250289,104.51,104.46,12.47526459]
[1769930087653,9.4250289,104.49,104.45,3.00226499]
[1769930087857,9.4250289,104.48,104.45,0.1]
[1769930088073,9.4250289,104.49,104.45,0.1]
[1769930088453,9.4250289,104.47,104.44,0.1]
[1769930088671,33.4992343,104.48,104.41,12.47937575]
[1769930088871,9.4250289,104.45,104.4,9.57821995]
[1769930089155,12.59249198,104.44,104.4,9.57851842]
[1769930089368,12.59249198,104.44,104.39,2.90226499]
[1769930089369,3.16746308,104.44,104.41,9.57754649]
[1769930089668,3.16746308,104.45,104.42,9.57667735]
[1769930090171,33.4992343,104.48,104.44,2.90226499]
[1769930090172,12.59249198,104.48,104.44,2.90226499]
[1769930090370,3.16746308,104.47,104.44,2.90226499]
[1769930090551,12.73965204,104.47,104.43,2.90226499]
[1769930090746,22.16468094,104.47,104.43,2.90226499]
[1769930090970,12.59249198,104.47,104.43,12.47800993]
[1769930091275,22.16471258,104.47,104.43,12.47800993]
[1769930092180,3.16746308,104.46,104.41,12.47956884]
[1769930092469,12.59249198,104.46,104.42,2.90226499]
[1769930092672,12.59249198,104.46,104.43,2.90226499]
[1769930093076,3.16746308,104.46,104.43,2.90226499]
[1769930093279,9.4250289,104.47,104.43,12.47794551]
[1769930093462,12.59249198,104.48,104.44,2.90226499]
[1769930093665,3.16746308,104.48,104.44,2.90226499]
[1769930093870,12.59249198,104.5,104.46,2.90226499]
[1769930094059,3.16746308,104.5,104.46,2.90226499]
[1769930094262,12.73684457,104.5,104.46,2.90226499]
[1769930094578,22.16187347,104.5,104.46,2.90226499]
[1769930094781,3.16746308,104.47,104.43,12.32729389]
[1769930094960,12.59249198,104.49,104.44,9.4250289]
[1769930095266,12.59249198,104.49,104.42,23.94082027]
[1769930095267,3.16746308,104.48,104.45,2.90226499]
[1769930095864,12.59249198,104.48,104.45,2.90226499]
[1769930096256,3.16746308,104.48,104.45,2.90226499]
[1769930096460,3.16746308,104.48,104.45,12.47604649]
[1769930097580,3.16746308,104.48,104.45,2.90226499]
[1769930098365,3.16746308,104.48,104.45,12.47604507]
[1769930099071,22.16226853,104.5,104.46,2.90226499]
[1769930099277,12.59249198,104.48,104.44,2.90226499]
[1769930100689,22.16410606,104.48,104.44,2.90226499]
[1769930101485,12.59249198,104.48,104.44,2.90226499]
[1769930102684,22.16419959,104.48,104.44,2.90226499]
[1769930102982,22.16293262,104.49,104.45,2.90226499]
[1769930103181,22.06719262,104.49,104.45,2.90226499]
[1769930103384,22.06719262,104.49,104.47,0.1896]
[1769930103563,22.06719262,104.49,104.47,0.0372072]
[1769930104572,3.45167814,104.55,104.47,2.93947219]
[1769930104780,9.4250289,104.53,104.49,2.90226499]
[1769930105168,3.16746308,104.51,104.47,0.0372072]
[1769930105377,12.59249198,104.5,104.47,0.0372072]
[1769930105767,3.16746308,104.5,104.47,0.0372072]
[1769930106184,12.73720423,104.5,104.47,0.0372072]
[1769930107064,3.16746308,104.5,104.47,0.0372072]
[1769930107791,3.02537444,104.49,104.47,0.0372072]
[1769930108271,12.5957963,104.49,104.47,0.0372072]
[1769930108478,3.02537444,104.5,104.47,0.0372072]
[1769930108987,3.02537444,104.5,104.47,2.99217304]
[1769930109367,12.59517018,104.5,104.47,2.99217304]
[1769930110775,9.56979574,104.5,104.47,2.99217304]
[1769930110976,33.34251415,104.53,104.49,2.95496584]
[1769930111181,36.36788859,104.53,104.49,2.95496584]
[1769930111690,9.56791827,104.52,104.49,2.95496584]
[1769930111888,9.56791827,104.52,104.41,29.55496584]
[1769930111889,3.02537444,104.49,104.41,29.55496584]
[1769930112099,37.76205632,104.52,104.42,2.95496584]
[1769930112100,3.02537444,104.46,104.42,2.95496584]
[1769930112284,12.45040334,104.46,104.42,2.95496584]
[1769930112470,3.02537444,104.46,104.42,2.95496584]
[1769930112867,12.45040334,104.46,104.42,2.95496584]
[1769930113302,12.45040334,104.46,104.42,12.53155644]
[1769930113473,22.02346914,104.46,104.43,2.95496584]
[1769930114394,9.57256334,104.47,104.43,2.95496584]
[1769930114696,22.02205703,104.48,104.43,2.95496584]
[1769930115879,22.02205703,104.48,104.44,2.95496584]
[1769930116174,22.02170987,104.48,104.44,2.95496584]
[1769930117184,22.02170987,104.48,104.44,12.52970468]
[1769930117582,52.11300525,104.52,104.46,0.45496584]
[1769930117583,3.02537444,104.51,104.46,0.45496584]
[1769930117806,18.99348657,104.52,104.44,33.51192765]
[1769930117807,3.02537444,104.52,104.44,33.51192765]
[1769930117982,12.45040334,104.52,104.45,9.4250289]